lending/lending_fUSD_20240604
["ID","MTS","AMOUNT","RATE_DAILY","PERIOD"]
[328544399,1717516114919,-150.0,0.00010499,2]
[328544400,1717516114977,-150.0,0.00010499,2]
[328544401,1717516115030,-150.0,0.00010499,2]
[328544402,1717516115072,-150.0,0.00010499,2]
[328544403,1717516115120,-150.0,0.00010499,2]
[328544404,1717516115167,-150.0,0.00010499,2]
[328544405,1717516115216,-150.0,0.00010499,2]
[328544406,1717516115257,-150.0,0.00010499,2]
[328544407,1717516115298,-150.0,0.00010499,2]
[328544408,1717516115332,-150.0,0.00010499,2]
[328544409,1717516115472,-220.20961224,0.00010499,2]
[328544410,1717516115548,-150.0,0.00010499,2]
[328544411,1717516115610,-150.0,0.00010499,2]
[328544412,1717516115658,-150.0,0.00010499,2]
[328544413,1717516124690,957.32584388,9.974e-05,2]
[328544414,1717516144703,957.32584388,9.974e-05,2]
[328544428,1717516163560,155.0,9.974e-05,2]
[328544429,1717516164704,853.51321193,9.974e-05,2]
[328544430,1717516170078,85156.42945642,9.974e-05,2]
[328544431,1717516171133,20255.39668758,9.974e-05,2]
[328544432,1717516173452,347.37547466,9.974e-05,2]
[328544436,1717516176205,19763.89772466,9.974e-05,2]
[328544438,1717516176481,48189.07707427,9.974e-05,2]
[328544439,1717516176527,6750.0,9.974e-05,2]
[328544440,1717516176569,30000.0,9.974e-05,2]
[328544447,1717516232038,-524.82676745,9.971e-05,2]
[328544448,1717516232048,-785.60612451,9.972e-05,2]
[328544449,1717516232057,-4764.56710804,9.973e-05,2]
[328544450,1717516232071,-700.0,9.973e-05,2]
[328544451,1717516232081,-103212.01429453,9.973e-05,2]
[328544452,1717516232092,-3505.21109,9.973e-05,2]
[328544453,1717516232104,-32809.48145967,9.973e-05,2]
[328544454,1717516232154,-155782.7489054,9.973e-05,2]
[328544455,1717516232166,-419.84743962,9.973e-05,2]
[328544456,1717516232216,-6855.0,9.973e-05,2]
[328544457,1717516232227,-6000.0,9.973e-05,2]
[328544458,1717516232275,-372.40005352,9.973e-05,2]
[328544459,1717516232286,-376141.21153595,9.973e-05,2]
[328544460,1717516232295,-14402.70792793,9.974e-05,2]
[328544461,1717516232306,-4147.36848739,9.974e-05,2]
[328544462,1717516232389,-445049.70237317,9.974e-05,2]
[328544463,1717516232404,-155.0,9.974e-05,2]
[328544465,1717516232413,-56770.95297095,9.974e-05,2]
[328544467,1717516232423,-20255.39668758,9.974e-05,2]
[328544469,1717516232433,-5392.00236625,9.974e-05,2]
[328544471,1717516232444,-346.62672627,9.974e-05,2]
[328544472,1717516232453,-155.0,0.00010398,2]
[328544475,1717516232462,-152.4807207,0.00010399,2]
[328544477,1717516232471,-1336.19349454,0.00010497,2]
[328544479,1717516232480,-155.0,0.00010497,2]
[328544481,1717516232490,-403.78649963,0.00010497,2]
[328544483,1717516232499,-13963.70944033,0.00010498,2]
[328544485,1717516232508,-181.00397603,0.00010499,2]
[328544487,1717516232517,-620.58593424,0.00010499,2]
[328544489,1717516232526,-284.69704404,0.00013997,2]
[328544491,1717516232535,-3193.38572393,0.00013997,2]
[328544493,1717516232545,-4271.37805062,0.00013997,2]
[328544495,1717516232554,-157.58676083,0.00013998,2]
[328544497,1717516232565,-342.09828557,0.00013998,2]
[328544499,1717516232575,-499.99,0.00013998,2]
[328544501,1717516232584,-394752.14855327,0.00014,2]
[328544503,1717516232596,-286655.33669488,0.00014,2]
[328544505,1717516232607,-6939.76641518,0.00014,2]
[328544533,1717516238497,-872.42352727,0.00014,2]
[328544535,1717516238508,-338.23656971,0.00014,2]
[328544537,1717516238523,-78080.78420791,0.00014,2]
[328544540,1717516238538,-419.93631631,0.00014,2]
[328544544,1717516238554,-2129.46930069,0.00014,2]
[328544547,1717516238565,-4472.00796351,0.00014,2]
[328544550,1717516238580,-2017.08668835,0.00014,2]
[328544553,1717516238593,-4004.79962,0.00014,2]
[328544555,1717516238605,-464.58898707,0.00014,2]
[328544558,1717516238617,-140057.99999997,0.00014,2]
[328544560,1717516238632,-255.91938799,0.00014,2]
[328544563,1717516238644,-2156.27065571,0.00014,2]
[328544564,1717516238655,-6196.40230232,0.00014,2]
[328544569,1717516238766,-150.0,0.00014,2]
[328544575,1717516240565,-7273.00033649,0.00014,2]
[328544576,1717516240579,-626.47765751,0.00014,2]
[328544577,1717516240627,-444.91275082,0.00014,2]
[328544578,1717516240846,-988.47750594,0.00014,2]
[328544579,1717516241316,-52414.50425878,0.00014,2]
[328544580,1717516241332,-151268.27274939,0.00014,2]
[328544581,1717516241343,-7877.70148946,0.00014,2]
[328544599,1717516243151,-484229.41938062,0.00014,2]
[328544600,1717516243162,-234.77,0.00015696,2]
[328544601,1717516243174,-257.28,0.00016094,2]
[328544602,1717516243187,-436.9,0.00016583,2]
[328544603,1717516243199,-153.04,0.00016584,2]
[328544604,1717516243213,-168.77,0.00016601,2]
[328544605,1717516243226,-200.0,0.00016602,2]
[328544606,1717516243239,-192.05306906,0.00017052,2]
[328544607,1717516243253,-233.91,0.00017066,2]
[328544608,1717516243266,-177.58,0.00017112,2]
[328544609,1717516243279,-1734.81,0.00017112,2]
[328544610,1717516243291,-150.99,0.00017112,2]
[328544611,1717516243302,-800.0,0.00017118,2]
[328544612,1717516243316,-179.24703443,0.00017158,2]
[328544613,1717516243337,-150.99,0.00017158,2]
[328544614,1717516243350,-155.93,0.0001724,2]
[328544615,1717516243362,-155.93,0.00017296,2]
[328544616,1717516243376,-605.48,0.00017335,2]
[328544617,1717516243387,-155.93,0.00017352,2]
[328544618,1717516243403,-155.93,0.00017409,2]
[328544619,1717516243417,-155.93,0.00017465,2]
[328544620,1717516243430,-155.93,0.00017521,2]
[328544621,1717516243443,-5180.87,0.00017548,2]
[328544622,1717516243454,-23900.0,0.00017548,2]
[328544623,1717516243468,-155.93,0.00017577,2]
[328544624,1717516243480,-155.93,0.00017633,2]
[328544625,1717516243492,-250.0,0.00017642,2]
[328544626,1717516243504,-155.93,0.00017689,2]
[328544627,1717516243515,-155.93,0.00017745,2]
[328544628,1717516243527,-155.93,0.00017802,2]
[328544629,1717516243539,-155.93,0.00017858,2]
[328544630,1717516243550,-155.93,0.00017914,2]
[328544631,1717516243561,-152.4807207,0.00017926,2]
[328544632,1717516243578,-155.93,0.0001797,2]
[328544633,1717516243591,-601577.63905438,0.00018,2]
[328544634,1717516243601,-155.93,0.00018026,2]
[328544635,1717516243610,-155.93,0.00018082,2]
[328544636,1717516243619,-155.93,0.00018138,2]
[328544637,1717516243629,-167.86,0.00018371,2]
[328544638,1717516243639,-233.91,0.00018436,2]
[328544639,1717516243650,-449.35897558,0.00019178,2]
[328544640,1717516243660,-369.38680362,0.00019178,2]
[328544641,1717516243670,-500.0,0.00019178,2]
[328544642,1717516243679,-500.0,0.00019178,2]
[328544643,1717516243688,-415.11546821,0.00019178,2]
[328544644,1717516243699,-471.066753,0.00019178,2]
[328544645,1717516243708,-839.52,0.000192,2]
[328544646,1717516243718,-991.62,0.000192,2]
[328544647,1717516243728,-800.0,0.00019257,2]
[328544648,1717516243738,-1890.56407422,0.00019518,7]
[328544649,1717516243748,-150.5,0.0001957,15]
[328544650,1717516243758,-150.5,0.0001958,15]
[328544651,1717516243767,-150.5,0.0001959,15]
[328544652,1717516243778,-151.46,0.00019696,15]
[328544653,1717516243788,-150.5,0.00019706,15]
[328544654,1717516243798,-150.5,0.00019716,15]
[328544655,1717516243808,-1979.48660224,0.0002,2]
[328544656,1717516243818,-226.54621656,0.000201,2]
[328544657,1717516243834,-5180.87,0.00020288,2]
[328544658,1717516243843,-690.11,0.00020733,2]
[328544659,1717516243852,-690.11,0.00020739,2]
[328544660,1717516243861,-690.11,0.00020744,2]
[328544661,1717516243870,-690.11,0.0002075,2]
[328544662,1717516244046,-690.11,0.00020755,2]
[328544663,1717516244055,-690.11,0.00020761,2]
[328544664,1717516244065,-690.11,0.00020766,2]
[328544665,1717516244079,-690.11,0.00020772,2]
[328544666,1717516244088,-690.11,0.00020777,2]
[328544667,1717516244097,-690.11,0.00020782,2]
[328544668,1717516244106,-690.11,0.00020788,2]
[328544669,1717516244115,-690.11,0.00020793,2]
[328544670,1717516244124,-690.11,0.00020799,2]
[328544671,1717516244133,-690.11,0.00020804,2]
[328544672,1717516244142,-690.11,0.0002081,2]
[328544673,1717516244151,-690.11,0.00020815,2]
[328544674,1717516244160,-690.11,0.00020821,2]
[328544675,1717516244170,-690.11,0.00020826,2]
[328544676,1717516244179,-690.11,0.00020831,2]
[328544677,1717516244189,-690.11,0.00020837,2]
[328544678,1717516244198,-500.0,0.00021136,2]
[328544679,1717516244208,-1200.0,0.00021136,2]
[328544680,1717516244217,-250.0,0.00021296,2]
[328544681,1717516244226,-700.65,0.00021296,2]
[328544682,1717516244236,-193.42,0.00021296,2]
[328544683,1717516244245,-150.0,0.00021296,2]
[328544684,1717516244255,-150.57,0.00021296,2]
[328544685,1717516244264,-800.0,0.00021397,2]
[328544686,1717516244274,-3218.6,0.00021467,2]
[328544687,1717516244283,-500.0,0.00021684,2]
[328544688,1717516244292,-1200.0,0.00021684,2]
[328544689,1717516244302,-182.36,0.00021918,2]
[328544690,1717516244311,-250.0,0.00021918,2]
[328544691,1717516244320,-200.0,0.00022054,2]
[328544692,1717516244335,-500.0,0.00022232,2]
[328544693,1717516244344,-1200.0,0.00022232,2]
[328544696,1717516244353,-500.0,0.00022506,2]
[328544698,1717516244362,-500.0,0.00022506,2]
[328544700,1717516244371,-257.28,0.00022532,2]
[328544702,1717516244380,-9474.0,0.000226,5]
[328544704,1717516244389,-1200.0,0.0002278,2]
[328544706,1717516244399,-4746.23061546,0.000229,5]
[328544708,1717516244413,-5180.87,0.00023028,2]
[328544709,1717516244422,-500.0,0.00023328,2]
[328544711,1717516244432,-1200.0,0.00023328,2]
[328544713,1717516244442,-179.24703441,0.00023529,2]
[328544715,1717516244451,-800.0,0.00023537,2]
[328544717,1717516244460,-202238.96597773,0.000236,2]
[328544720,1717516244470,-500.0,0.00023602,2]
[328544722,1717516244482,-500.0,0.00023602,2]
[328544724,1717516244491,-1200.0,0.00023876,2]
[328544726,1717516244501,-158.46,0.00024384,2]
[328544728,1717516244510,-500.0,0.00024424,2]
[328544730,1717516244520,-500.0,0.00024698,2]
[328544732,1717516244530,-247.24694716,0.00024798,2]
[328544734,1717516244539,-247.24694709,0.00024798,2]
[328544736,1717516244548,-247.24694709,0.00024798,2]
[328544738,1717516244558,-247.24694709,0.00024798,2]
[328544739,1717516244567,-247.24694709,0.00024798,2]
[328544741,1717516244581,-247.24694709,0.00024798,2]
[328544743,1717516244590,-247.24694709,0.00024798,2]
[328544745,1717516244599,-200.0,0.00024811,2]
[328544747,1717516244608,-839.52,0.000249,2]
[328544749,1717516244617,-991.62,0.000249,2]
[328544751,1717516244626,-1200.0,0.00024972,2]
[328544753,1717516244635,-155.0,0.00025,2]
[328544755,1717516244645,-696.95,0.00025205,2]
[328544757,1717516244654,-500.0,0.0002552,2]
[328544759,1717516244663,-150.57,0.00025556,2]
[328544762,1717516244673,-800.0,0.00025676,2]
[328544763,1717516244683,-500.0,0.00025794,2]
[328544766,1717516244692,-1200.0,0.00026068,2]
[328544768,1717516244701,-247.24694709,0.00026344,2]
[328544769,1717516244710,-500.0,0.00026616,2]
[328544771,1717516244720,-458.22106508,0.0002689,2]
[328544773,1717516244729,-751.9104142,0.00026998,2]
[328544775,1717516244739,-1200.0,0.00027164,2]
[328544777,1717516244748,-557.4431,0.0002739,2]
[328544779,1717516244757,-289.34,0.00027397,10]
[328544781,1717516244766,-241.11,0.00027397,10]
[328544783,1717516244776,-200.93,0.00027397,10]
[328544785,1717516244785,-381.76420571,0.00027558,2]
[328544787,1717516244794,-172.70768579,0.00027566,2]
[328544789,1717516244803,-2116.58121075,0.00027566,2]
[328544791,1717516244812,-200.0,0.00027567,2]
[328544793,1717516244821,-150.5,0.0002757,15]
[328544795,1717516244835,-150.5,0.0002758,15]
[328544797,1717516244843,-150.5,0.0002759,15]
[328544798,1717516244853,-413.05154171,0.00027596,2]
[328544799,1717516244863,-1041.80097141,0.00027666,2]
[328544800,1717516244872,-500.0,0.00027666,2]
[328544801,1717516244882,-257.82046593,0.00027666,2]
[328544802,1717516244891,-168.98643813,0.00027666,2]
[328544803,1717516244900,-27736.09243368,0.00027666,14]
[328544804,1717516244910,-500.0,0.00027712,2]
[328544805,1717516244919,-184.846225,0.00027773,2]
[328544806,1717516244928,-172.941094,0.00027773,2]
[328544807,1717516244938,-642.547301,0.00027773,2]
[328544808,1717516244948,-168.962269,0.00027773,2]
[328544809,1717516244957,-2369.454403,0.00027773,2]
[328544810,1717516244966,-2914.410418,0.00027773,2]
[328544811,1717516244976,-176.335225,0.00027773,2]
[328544812,1717516244985,-196.139912,0.00027773,2]
[328544813,1717516244995,-164.072747,0.00027773,2]
[328544814,1717516245005,-263.314095,0.00027773,2]
[328544815,1717516245014,-2116.58121071,0.00027778,2]
[328544816,1717516245024,-591.22223159,0.00027856,2]
[328544817,1717516245033,-4116.0,0.000279,2]
[328544818,1717516245042,-781.0,0.000279,2]
[328544819,1717516245052,-2116.58121071,0.0002799,2]
[328544820,1717516245062,-470.72818446,0.00028,7]
[328544821,1717516245071,-642.547301,0.0002812,2]
[328544822,1717516245083,-2369.454403,0.0002812,2]
[328544823,1717516245093,-2914.410418,0.0002812,2]
[328544824,1717516245102,-263.314095,0.0002812,2]
[328544825,1717516245112,-247.24694709,0.00028122,2]
[328544826,1717516245121,-300.0,0.000282,2]
[328544827,1717516245130,-2116.58121071,0.00028203,2]
[328544828,1717516245139,-176.335225,0.00028236,2]
[328544829,1717516245149,-164.072747,0.00028236,2]
[328544830,1717516245158,-441.67,0.00028256,2]
[328544831,1717516245167,-1200.0,0.0002826,2]
[328544832,1717516245176,-441.67,0.00028263,2]
[328544833,1717516245185,-441.67,0.00028271,2]
[328544834,1717516245194,-441.67,0.00028278,2]
[328544835,1717516245203,-441.67,0.00028286,2]
[328544836,1717516245212,-441.67,0.00028293,2]
[328544837,1717516245221,-839.52,0.000283,2]
[328544838,1717516245231,-991.62,0.000283,2]
[328544839,1717516245240,-441.67,0.00028301,2]
[328544840,1717516245249,-441.67,0.00028308,2]
[328544841,1717516245258,-441.67,0.00028315,2]
[328544842,1717516245267,-441.67,0.00028323,2]
[328544843,1717516245275,-441.67,0.0002833,2]
[328544844,1717516245284,-441.67,0.00028338,2]
[328544845,1717516245293,-441.67,0.00028345,2]
[328544846,1717516245303,-441.67,0.00028353,2]
[328544847,1717516245312,-441.67,0.0002836,2]
[328544848,1717516245321,-441.67,0.00028367,2]
[328544849,1717516245335,-441.67,0.00028375,2]
[328544850,1717516245344,-441.67,0.00028382,2]
[328544851,1717516245354,-441.67,0.0002839,2]
[328544852,1717516245363,-441.67,0.00028397,2]
[328544853,1717516245372,-2116.58121071,0.00028415,2]
[328544854,1717516245381,-642.547301,0.00028467,2]
[328544855,1717516245389,-2369.454403,0.00028467,2]
[328544856,1717516245399,-2914.410418,0.00028467,2]
[328544857,1717516245409,-263.314095,0.00028467,2]
[328544858,1717516245421,-981.41797301,0.00028498,2]
[328544859,1717516245430,-2116.58121071,0.00028627,2]
[328544860,1717516245440,-176.335225,0.00028698,2]
[328544861,1717516245450,-164.072747,0.00028698,2]
[328544862,1717516245459,-2724.5367156,0.00028722,10]
[328544863,1717516245468,-152.0,0.00028782,3]
[328544864,1717516245478,-500.0,0.00028808,2]
[328544865,1717516245487,-642.547301,0.00028814,2]
[328544866,1717516245500,-2369.454403,0.00028814,2]
[328544867,1717516245510,-2914.410418,0.00028814,2]
[328544868,1717516245520,-263.314095,0.00028814,2]
[328544869,1717516245529,-2116.58121071,0.00028839,2]
[328544870,1717516245539,-1000.0,0.00028945,2]
[328544871,1717516245548,-1000.0,0.00028945,2]
[328544872,1717516245557,-1000.0,0.00028945,2]
[328544873,1717516245566,-1000.0,0.00028945,2]
[328544874,1717516245579,-1000.0,0.00028945,2]
[328544875,1717516245588,-1000.0,0.00028945,2]
[328544876,1717516245597,-1000.0,0.00028945,2]
[328544877,1717516245606,-1000.0,0.00028945,2]
[328544878,1717516245615,-1000.0,0.00028945,2]
[328544879,1717516245625,-1000.0,0.00028945,2]
[328544880,1717516245634,-1000.0,0.00028945,2]
[328544881,1717516245643,-1000.0,0.00028945,2]
[328544882,1717516245653,-1000.0,0.00028945,2]
[328544883,1717516245662,-1000.0,0.00028945,2]
[328544884,1717516245671,-1000.0,0.00028945,2]
[328544885,1717516245681,-1000.0,0.00028945,2]
[328544886,1717516245691,-1000.0,0.00028945,2]
[328544887,1717516245702,-1000.0,0.00028945,2]
[328544888,1717516245712,-1000.0,0.00028945,2]
[328544889,1717516245723,-1000.0,0.00028945,2]
[328544890,1717516245732,-1000.0,0.00028945,2]
[328544891,1717516245742,-176.0,0.00028945,2]
[328544892,1717516245752,-10000.0,0.00029,2]
[328544893,1717516245762,-500.0,0.00029,2]
[328544894,1717516245772,-500.0,0.00029,2]
[328544895,1717516245788,-500.0,0.00029,2]
[328544896,1717516245799,-500.0,0.00029,2]
[328544897,1717516245809,-500.0,0.00029,2]
[328544898,1717516245819,-500.0,0.00029,2]
[328544899,1717516245832,-500.0,0.00029,2]
[328544900,1717516245841,-500.0,0.00029,2]
[328544901,1717516245851,-500.0,0.00029,2]
[328544902,1717516245859,-500.0,0.00029,2]
[328544903,1717516245868,-500.0,0.00029,2]
[328544904,1717516245878,-500.0,0.00029,2]
[328544905,1717516245887,-500.0,0.00029,2]
[328544906,1717516245897,-500.0,0.00029,2]
[328544907,1717516245908,-508.42,0.00029,2]
[328544908,1717516245921,-500.0,0.00029,2]
[328544909,1717516245933,-500.0,0.00029,2]
[328544911,1717516245943,-500.0,0.00029,2]
[328544913,1717516245954,-500.0,0.00029,2]
[328544914,1717516245965,-500.0,0.00029,2]
[328544915,1717516245975,-500.0,0.00029,2]
[328544916,1717516245986,-500.0,0.00029,2]
[328544917,1717516245996,-500.0,0.00029,2]
[328544918,1717516246006,-500.0,0.00029,2]
[328544919,1717516246017,-500.0,0.00029,2]
[328544920,1717516246028,-500.0,0.00029,2]
[328544921,1717516246040,-500.0,0.00029,2]
[328544922,1717516246050,-500.0,0.00029,2]
[328544923,1717516246060,-500.0,0.00029,2]
[328544924,1717516246071,-500.0,0.00029,2]
[328544925,1717516246090,-500.0,0.00029,2]
[328544926,1717516246100,-500.0,0.00029,2]
[328544927,1717516246110,-500.0,0.00029,2]
[328544928,1717516246121,-500.0,0.00029,2]
[328544929,1717516246131,-500.0,0.00029,2]
[328544930,1717516246141,-500.0,0.00029,2]
[328544931,1717516246151,-500.0,0.00029,2]
[328544932,1717516246161,-500.0,0.00029,2]
[328544933,1717516246171,-500.0,0.00029,2]
[328544934,1717516246181,-500.0,0.00029,2]
[328544935,1717516246190,-500.0,0.00029,2]
[328544936,1717516246199,-500.0,0.00029,2]
[328544937,1717516246208,-500.0,0.00029,2]
[328544938,1717516246217,-500.0,0.00029,2]
[328544939,1717516246226,-500.0,0.00029,2]
[328544940,1717516246236,-500.0,0.00029,2]
[328544941,1717516246245,-500.0,0.00029,2]
[328544942,1717516246255,-500.0,0.00029,2]
[328544943,1717516246264,-500.0,0.00029,2]
[328544944,1717516246273,-500.0,0.00029,2]
[328544945,1717516246283,-500.0,0.00029,2]
[328544946,1717516246292,-500.0,0.00029,2]
[328544947,1717516246301,-500.0,0.00029,2]
[328544948,1717516246311,-500.0,0.00029,2]
[328544949,1717516246321,-500.0,0.00029,2]
[328544950,1717516246340,-500.0,0.00029,2]
[328544951,1717516246350,-500.0,0.00029,2]
[328544952,1717516246359,-500.0,0.00029,2]
[328544953,1717516246368,-500.0,0.00029,2]
[328544954,1717516246377,-500.0,0.00029,2]
[328544955,1717516246387,-500.0,0.00029,2]
[328544956,1717516246398,-500.0,0.00029,2]
[328544957,1717516246412,-500.0,0.00029,2]
[328544958,1717516246421,-500.0,0.00029,2]
[328544959,1717516246430,-500.0,0.00029,2]
[328544960,1717516246440,-500.0,0.00029,2]
[328544961,1717516246451,-500.0,0.00029,2]
[328544962,1717516246460,-500.0,0.00029,2]
[328544963,1717516246470,-500.0,0.00029,2]
[328544964,1717516246480,-500.0,0.00029,2]
[328544965,1717516246490,-500.0,0.00029,2]
[328544966,1717516246501,-500.0,0.00029,2]
[328544967,1717516246510,-500.0,0.00029,2]
[328544968,1717516246520,-500.0,0.00029,2]
[328544969,1717516246529,-500.0,0.00029,2]
[328544970,1717516246541,-500.0,0.00029,2]
[328544971,1717516246551,-500.0,0.00029,2]
[328544972,1717516246560,-500.0,0.00029,2]
[328544973,1717516246569,-500.0,0.00029,2]
[328544974,1717516246582,-500.0,0.00029,2]
[328544975,1717516246592,-500.0,0.00029,2]
[328544976,1717516246601,-500.0,0.00029,2]
[328544977,1717516246611,-500.0,0.00029,2]
[328544978,1717516246620,-500.0,0.00029,2]
[328544979,1717516246629,-500.0,0.00029,2]
[328544980,1717516246638,-500.0,0.00029,2]
[328544981,1717516246647,-500.0,0.00029,2]
[328544982,1717516246657,-500.0,0.00029,2]
[328544983,1717516246666,-500.0,0.00029,2]
[328544984,1717516246676,-500.0,0.00029,2]
[328544985,1717516246685,-500.0,0.00029,2]
[328544986,1717516246695,-500.0,0.00029,2]
[328544987,1717516246705,-500.0,0.00029,2]
[328544988,1717516246714,-500.0,0.00029,2]
[328544989,1717516246724,-500.0,0.00029,2]
[328544990,1717516246733,-500.0,0.00029,2]
[328544991,1717516246743,-500.0,0.00029,2]
[328544992,1717516246753,-500.0,0.00029,2]
[328544993,1717516246761,-500.0,0.00029,2]
[328544994,1717516246771,-500.0,0.00029,2]
[328544995,1717516246780,-500.0,0.00029,2]
[328544996,1717516246790,-500.0,0.00029,2]
[328544997,1717516246800,-500.0,0.00029,2]
[328544998,1717516246809,-500.0,0.00029,2]
[328544999,1717516246818,-500.0,0.00029,2]
[328545000,1717516246830,-500.0,0.00029,2]
[328545001,1717516246838,-500.0,0.00029,2]
[328545002,1717516246847,-500.0,0.00029,2]
[328545003,1717516246856,-170.14,0.00029,2]
[328545004,1717516246865,-500.0,0.00029,2]
[328545005,1717516246874,-500.0,0.00029,2]
[328545006,1717516246883,-500.0,0.00029,2]
[328545007,1717516246892,-500.0,0.00029,2]
[328545008,1717516246901,-500.0,0.00029,2]
[328545009,1717516246910,-500.0,0.00029,2]
[328545010,1717516246920,-500.0,0.00029,2]
[328545011,1717516246929,-500.0,0.00029,2]
[328545012,1717516246938,-500.0,0.00029,2]
[328545013,1717516246947,-500.0,0.00029,2]
[328545014,1717516246956,-500.0,0.00029,2]
[328545015,1717516246966,-500.0,0.00029,2]
[328545016,1717516246974,-500.0,0.00029,2]
[328545017,1717516246984,-500.0,0.00029,2]
[328545018,1717516246993,-500.0,0.00029,2]
[328545019,1717516247003,-500.0,0.00029,2]
[328545020,1717516247012,-500.0,0.00029,2]
[328545021,1717516247021,-500.0,0.00029,2]
[328545022,1717516247030,-500.0,0.00029,2]
[328545023,1717516247039,-500.0,0.00029,2]
[328545024,1717516247048,-500.0,0.00029,2]
[328545025,1717516247057,-500.0,0.00029,2]
[328545026,1717516247066,-500.0,0.00029,2]
[328545027,1717516247079,-500.0,0.00029,2]
[328545028,1717516247088,-500.0,0.00029,2]
[328545029,1717516247097,-500.0,0.00029,2]
[328545030,1717516247106,-500.0,0.00029,2]
[328545031,1717516247115,-500.0,0.00029,2]
[328545032,1717516247125,-500.0,0.00029,2]
[328545033,1717516247134,-500.0,0.00029,2]
[328545034,1717516247146,-500.0,0.00029,2]
[328545035,1717516247157,-500.0,0.00029,2]
[328545036,1717516247168,-500.0,0.00029,2]
[328545037,1717516247180,-500.0,0.00029,2]
[328545038,1717516247191,-500.0,0.00029,2]
[328545039,1717516247202,-500.0,0.00029,2]
[328545040,1717516247213,-500.0,0.00029,2]
[328545041,1717516247225,-500.0,0.00029,2]
[328545042,1717516247237,-500.0,0.00029,2]
[328545043,1717516247248,-500.0,0.00029,2]
[328545044,1717516247260,-500.0,0.00029,2]
[328545045,1717516247271,-500.0,0.00029,2]
[328545046,1717516247281,-500.0,0.00029,2]
[328545047,1717516247293,-500.0,0.00029,2]
[328545048,1717516247304,-500.0,0.00029,2]
[328545049,1717516247314,-500.0,0.00029,2]
[328545050,1717516247324,-500.0,0.00029,2]
[328545051,1717516247340,-500.0,0.00029,2]
[328545052,1717516247349,-500.0,0.00029,2]
[328545053,1717516247359,-500.0,0.00029,2]
[328545054,1717516247369,-500.0,0.00029,2]
[328545055,1717516247379,-500.0,0.00029,2]
[328545056,1717516247388,-500.0,0.00029,2]
[328545057,1717516247399,-500.0,0.00029,2]
[328545058,1717516247413,-500.0,0.00029,2]
[328545059,1717516247423,-500.0,0.00029,2]
[328545060,1717516247432,-609.26,0.00029,2]
[328545061,1717516247440,-2116.58121071,0.00029051,2]
[328545062,1717516247450,-45815.78814677,0.0002913,10]
[328545063,1717516247460,-642.547301,0.00029161,2]
[328545064,1717516247469,-2369.454403,0.00029161,2]
[328545065,1717516247479,-2914.410418,0.00029161,2]
[328545066,1717516247490,-176.335225,0.00029161,2]
[328545067,1717516247500,-164.072747,0.00029161,2]
[328545068,1717516247510,-263.314095,0.00029161,2]